Cogmind - Beta 16.1 @@@ ROGUE MODE // 2026.03.08 @ 22:59:34 Player: CONM Result: Destroyed by P-70 Sage via exploding Power Conduit Performance ------------- Evolutions (6) 3000 Regions Visited (20) 4000 Robots Destroyed (67) 335 Value Destroyed (1551) 1551 Prototype IDs (14) 280 Alien Tech Used (0) 0 Bonus (2127) 2127 TOTAL SCORE: 11293 Bonus ------- High Alert Combat Kills 55 Follower Combat Kills 1242 Met Data Miner 300 Met Imprinter 300 Was Imprinted 300 Friendly Fire -70 Cogmind --------- Core Integrity 0/1150 Matter 178/300 Energy 100/100 System Corruption 7% Temperature Cool (24) Movement Core (50) Location -4/Factory Parts ------- > --- POWER (1) -------- (None) > --- PROPULSION (6) --- (None) > --- UTILITY (9) ------ (None) > --- WEAPON (3) ------- (None) > --- INVENTORY (5) ---- (None) Peak State ------------ > --- POWER ------------ Light Ion Engine > --- PROPULSION ------- Field Propulsion Array Field Propulsion Array Field Propulsion Array > --- UTILITY ---------- Large Storage Unit Advanced Sensor Array Advanced Signal Interpreter Improved Terrain Scan Processor Makeshift Terrain Scan Processor Improved Transmission Jammer Improved Phase Shifter Force Field Z-Drone Bay > --- WEAPON ----------- Enhanced Gauss Cannon > --- INVENTORY -------- Improved Fusion Compressor Improved Fusion Compressor Antigrav System Antigrav System Field Propulsion Drive Field Propulsion Array Field Propulsion Array Advanced Cooling System Medium Storage Unit Improved Melee Analysis Suite Advanced EM Disruption Field Force Field Force Field [Rating: 99] Favorites ----------- Power Light Deuterium Engine Engine Light Deuterium Engine Power Core Light Fission Core Propulsion Cesium-ion Thruster Treads Light Treads Leg Carbon-fiber Leg Wheel Armored Huge Wheel Hover Unit Backup Propulsion III Flight Unit Cesium-ion Thruster Utility Medium Storage Unit Device Advanced Sensor Array Storage Medium Storage Unit Processor Melee Analysis Suite Hackware Hacking Suite Protection Hardened Light Armor Plating Weapon CR-A16's Pointy Stick Energy Gun Small Laser Energy Cannon Long-range Proton Cannon Ballistic Gun Enhanced Autogun Ballistic Cannon Enhanced Gauss Cannon Launcher Grenade Launcher Slashing Weapon Greatsword Piercing Weapon CR-A16's Pointy Stick Build | -11 -10 -9 -9 -8 -7 -7 -7 -7 -6 -6 -6 -6 -6 -5 -5 -5 -5 -5 -5 -4 ------- Run | Yrd Mat Mat Min Mat Fac Low Low Dat Pro Fac Low Low Zio Pro Fac Ext Cet Arc Hub Fac Slots Evolved 12 | . . 2 . 2 2 . . . . 2 . . . . 2 . . . . 2 Power . | . . . . . . . . . . . . . . . . . . . . . Propulsion 4 | . . . . 1 1 . . . . . . . . . . . . . . 2 Utility 7 | . . 2 . 1 . . . . . 2 . . . . 2 . . . . . Weapon 1 | . . . . . 1 . . . . . . . . . . . . . . . Parts Attached 124 | 6 3 3 . 30 2 . 1 . . 5 . 5 10 4 15 10 2 . 8 20 Power 18 | 1 1 1 . 3 1 . 1 . . 1 . . 1 1 2 2 . . 1 2 Engine 10 | 1 1 1 . 1 1 . 1 . . . . . 1 1 . 1 . . 1 . Core 8 | . . . . 2 . . . . . 1 . . . . 2 1 . . . 2 Reactor . | . . . . . . . . . . . . . . . . . . . . . Propulsion 33 | 2 . . . 8 1 . . . . . . 1 1 . 7 . 2 . 1 10 Treads 2 | 2 . . . . . . . . . . . . . . . . . . . . Leg 4 | . . . . 4 . . . . . . . . . . . . . . . . Wheel 7 | . . . . 1 . . . . . . . . 1 . . . . . 1 4 Hover 7 | . . . . . . . . . . . . 1 . . 5 . . . . 1 Flight 13 | . . . . 3 1 . . . . . . . . . 2 . 2 . . 5 Utility 49 | 1 1 2 . 11 . . . . . 3 . 2 6 1 4 7 . . 5 6 Device 23 | . 1 1 . 3 . . . . . . . 2 3 . 4 2 . . 3 4 Storage 6 | 1 . . . 2 . . . . . . . . 2 . . . . . . 1 Processor 9 | . . . . 3 . . . . . 1 . . 1 . . 1 . . 2 1 Hackware 3 | . . . . 1 . . . . . 2 . . . . . . . . . . Protection 8 | . . 1 . 2 . . . . . . . . . 1 . 4 . . . . Artifact . | . . . . . . . . . . . . . . . . . . . . . Weapon 24 | 2 1 . . 8 . . . . . 1 . 2 2 2 2 1 . . 1 2 Energy Gun 1 | 1 . . . . . . . . . . . . . . . . . . . . Energy Cannon 3 | . . . . . . . . . . . . . . . 2 . . . . 1 Ballistic Gun 6 | 1 1 . . 3 . . . . . . . 1 . . . . . . . . Ballistic Cannon 3 | . . . . 1 . . . . . . . . . 1 . . . . 1 . Launcher 3 | . . . . 2 . . . . . . . 1 . . . . . . . . Special Weapon . | . . . . . . . . . . . . . . . . . . . . . Impact Weapon . | . . . . . . . . . . . . . . . . . . . . . Slashing Weapon 5 | . . . . 2 . . . . . . . . 1 1 . 1 . . . . Piercing Weapon 3 | . . . . . . . . . . 1 . . 1 . . . . . . 1 Special Melee Weapon . | . . . . . . . . . . . . . . . . . . . . . Unidentified Prototypes 3 | . . . . 1 . . . . . . . . 1 . . 1 . . . . Parts Lost 57 | . . . . 15 . . . . . . 1 10 . . 2 9 10 1 2 7 Power 8 | . . . . 2 . . . . . . . 1 . . 1 1 1 . . 2 Propulsion 19 | . . . . 4 . . . . . . . 5 . . . 1 2 1 1 5 Utility 18 | . . . . 4 . . . . . . . 2 . . 1 5 5 . 1 . Weapon 12 | . . . . 5 . . . . . . 1 2 . . . 2 2 . . . Highest Loss Streak 10 | . . . . 5 . . . . . . 1 10 . . 1 5 6 3 2 5 To Critical Strikes 1 | . . . . 1 . . . . . . . . . . . . . . . . Average Backups 7 | 3 6 7 8 10 9 10 10 10 9 10 10 7 4 6 7 7 4 2 3 8 Power 1 | 1 3 3 3 2 . . . . . . . . . 1 1 . . . . 1 Propulsion 2 | 1 2 1 1 2 2 2 2 2 2 1 1 . 1 3 2 2 1 . . 2 Utility 3 | . . 2 4 5 3 4 4 4 4 5 6 5 1 1 1 1 2 2 3 4 Weapon 1 | . . . . 1 3 4 4 4 3 3 3 1 1 1 2 1 . . . . Tool/Special . | . . . . . . . . . . . . . . . . . . . . . Unused Backups 28 | . . 1 . 11 . . . . . 3 . 2 . . 4 . . . . 7 Power 4 | . . . . 3 . . . . . . . . . . . . . . . 1 Propulsion 8 | . . 1 . 1 . . . . . 1 . . . . 3 . . . . 2 Utility 12 | . . . . 7 . . . . . . . 1 . . . . . . . 4 Weapon 4 | . . . . . . . . . . 2 . 1 . . 1 . . . . . Tool/Special . | . . . . . . . . . . . . . . . . . . . . . Average Slot Usage (%) 77 | . 94 99 100 89 76 84 84 84 91 89 88 45 54 84 83 89 49 23 33 50 Engine 4 | . 14 11 11 4 . 7 7 7 7 4 . . 5 6 2 3 . . 2 3 Treads 2 | . 28 22 22 1 . . . . . . . . . . . . . . . . Leg 2 | . . . . 13 . . . . . . . . . . . . . . . . Wheel 1 | . . . . . . . . . . . . . 1 6 2 . . . 2 6 Hover 6 | . . . . . . . . . . . . . 11 13 15 23 13 . . . Flight 7 | . . . . 8 29 30 30 30 30 26 26 10 . . 1 . 4 11 2 7 Device 12 | . 8 22 22 8 7 7 7 7 7 6 6 8 10 19 20 15 6 . 9 12 Storage 8 | . 14 11 11 6 7 7 7 7 7 6 6 3 11 13 11 8 7 5 . 3 Processor 10 | . . . . 19 15 15 15 15 15 18 20 10 5 6 5 9 5 5 10 11 Hackware 1 | . . . . . 7 7 7 7 7 11 13 6 . . . . . . . . Protection 4 | . . 10 11 8 . . . . . . . . . 1 5 9 5 . . . Ballistic Gun 4 | . 24 22 22 11 . . . . . . . . . . . . . . . . Slashing Weapon 2 | . . . . 1 7 7 7 7 7 2 . . . 5 3 2 . . . . Piercing Weapon 2 | . . . . . . . . . . 3 6 2 4 6 4 5 3 . . . Peak Build Rating 99 | 6 7 12 12 34 34 34 36 36 38 48 45 44 53 57 75 74 57 27 45 99 Average Rating 39 | 4 6 11 12 26 32 34 34 36 37 42 44 22 30 52 63 66 41 23 26 61 On Entrance 30 | . 6 7 12 12 30 34 34 36 36 38 45 44 9 41 57 67 57 27 15 27 Avg Prop Armor Cover (%) 5 | . . . . 5 4 . . . . . . . 8 5 4 8 . . . . Naked Turns 41 | . . . . . . . . . . . . 12 . . . . . . . 29 Heaviest Build 62 | 11 12 23 23 62 21 21 21 21 24 24 24 21 28 41 52 58 36 10 14 47 Greatest Support 74 | 40 40 40 40 45 24 24 24 24 24 24 24 24 28 28 42 42 42 26 13 74 Greatest Overweight (x) 15 | . . . . 3 5 . . . . . . 4 1 1 2 15 1 . 3 6 Average Overweight (x) . | . . . . . . . . . . . . . . . . . . . . . Largest Inventory Capacity 20 | 8 8 8 8 20 10 10 10 10 10 10 10 10 10 10 10 10 10 10 10 15 Average Capacity 10 | 7 8 8 8 13 10 10 10 10 10 10 10 7 9 10 10 10 10 10 5 12 Most Carried 20 | 4 8 8 8 20 10 10 10 10 10 10 10 10 10 9 10 10 9 2 5 15 Average Carried 8 | 3 6 7 8 10 9 10 10 10 9 9 10 7 6 7 9 9 5 2 3 9 Final Capacity 10 | 8 8 8 8 10 10 10 10 10 10 10 10 5 10 10 10 10 10 10 5 5 Final Carried 10 | 4 8 8 8 8 10 10 10 10 10 10 10 5 9 8 10 9 2 2 4 . Class Distribution -------------------- 53% | Mutant 10% | Sprinter 10% | Derelict-Gladiator 7% | Scavenger-Mutant 5% | Commander-Gladiator 4% | Hacker-Scout 3% | Derelict-Mutant Dominant Class ---------------- Mutant | -10/Materials Mutant | -9/Materials Mutant | -9/Mines Mutant | -8/Materials Sprinter | -7/Factory Sprinter | -7/Lower Caves Sprinter | -7/Lower Caves Sprinter | -7/Data Miner Sprinter | -6/Proximity Caves Sprinter | -6/Factory Hacker-Scout | -6/Lower Caves Mutant | -6/Lower Caves Mutant | -6/Zion Derelict-Gladiator | -5/Proximity Caves Mutant | -5/Factory Commander-Gladiator | -5/Extension Mutant | -5/Cetus Mutant | -5/Archives Mutant | -5/Hub_04(d) Mutant | -4/Factory Resources | -11 -10 -9 -9 -8 -7 -7 -7 -7 -6 -6 -6 -6 -6 -5 -5 -5 -5 -5 -5 -4 ----------- Run | Yrd Mat Mat Min Mat Fac Low Low Dat Pro Fac Low Low Zio Pro Fac Ext Cet Arc Hub Fac Matter Collected 2374 | 250 90 89 . 868 20 . 10 . 90 . 50 . 129 59 62 262 . . 142 253 Remotely . | . . . . . . . . . . . . . . . . . . . . . Salvage Created 2542 | 61 142 127 . 1220 299 . . . . . . . . 83 128 438 . . 16 28 Parts 152 | 6 15 9 . 67 20 . . . . . . . . 2 15 16 . . 2 . Haulers Intercepted 5 | . . . . 3 1 . . . . . . . . . . 1 . . . . Recyclers Shooed 3 | 1 . . . 2 . . . . . . . . . . . . . . . . Parts Field Recycled . | . . . . . . . . . . . . . . . . . . . . . Retrieved Matter . | . . . . . . . . . . . . . . . . . . . . . Parts Self-Destructed 4 | . . . . . . . . . . . . . . 4 . . . . . . Prevented . | . . . . . . . . . . . . . . . . . . . . . Parts Restored . | . . . . . . . . . . . . . . . . . . . . . Kills | -11 -10 -9 -9 -8 -7 -7 -7 -7 -6 -6 -6 -6 -6 -5 -5 -5 -5 -5 -5 -4 ------- Run | Yrd Mat Mat Min Mat Fac Low Low Dat Pro Fac Low Low Zio Pro Fac Ext Cet Arc Hub Fac Combat Hostiles Destroyed 36 | . 7 3 . 19 . . . . 1 . . . . 1 1 4 . . . . Melee 2 | . . . . . . . . . . . . . . 1 1 . . . . . Guns 24 | . 7 3 . 14 . . . . . . . . . . . . . . . . Cannons 4 | . . . . 2 . . . . . . . . . . . 2 . . . . AOE 4 | . . . . 3 . . . . 1 . . . . . . . . . . . Classes Destroyed 13 | 1 2 1 . 8 . . . . 1 . . . . . . . . . . . Worker 3 | . . . . 1 1 . . . . . . . . . . . . . 1 . Builder 6 | . . . . 1 1 . . . . . . . . . 3 1 . . . . Tunneler 6 | 3 . . . . 3 . . . . . . . . . . . . . . . Hauler 5 | . . . . 3 1 . . . . . . . . . . 1 . . . . Recycler 7 | . . . . 5 2 . . . . . . . . . . . . . . . Operator 1 | . . . . 1 . . . . . . . . . . . . . . . . Watcher 3 | . . . . 1 . . . . . . . . . . . 1 . . . 1 Swarmer 17 | . 6 . . 10 . . . . . . . . . . . 1 . . . . Grunt 7 | . 1 2 . 4 . . . . . . . . . . . . . . . . Brawler 1 | . . . . 1 . . . . . . . . . . . . . . . . Sentry 6 | . . 1 . 1 . . . . . . . . . 1 1 2 . . . . Hunter 4 | . . . . 3 . . . . . . . . . . . 1 . . . . Programmer 1 | . . . . . . . . . 1 . . . . . . . . . . . Best Kill Streak 5 | 2 3 2 . 5 4 . . . 1 . . . . 1 2 1 . . 1 1 Combat Bots Only 4 | . 3 2 . 4 . . . . 1 . . . . 1 1 1 . . . . Max Kills in Single Turn 3 | 1 1 1 . 3 1 . . . 1 . . . . 1 1 1 . . 1 1 Gunslinging 1 | . . . . 1 . . . . . . . . . . . . . . . . Exploded 2 | . . . . 2 . . . . 1 . . . . . . . . . . . Melee 1 | . . . . . . . . . . . . . . 1 1 . . . . . Uniques/NPCs Destroyed . | . . . . . . . . . . . . . . . . . . . . . Combat | -11 -10 -9 -9 -8 -7 -7 -7 -7 -6 -6 -6 -6 -6 -5 -5 -5 -5 -5 -5 -4 -------- Run | Yrd Mat Mat Min Mat Fac Low Low Dat Pro Fac Low Low Zio Pro Fac Ext Cet Arc Hub Fac Hostile Shots Fired 797 | . 34 18 16 212 19 4 13 . 12 . 11 87 . 3 22 99 59 21 11 156 Missed 282 | . 8 4 4 63 13 3 9 . 8 . 6 24 . . 12 37 19 12 1 59 Hits 515 | . 26 14 12 149 6 1 4 . 4 . 5 63 . 3 10 62 40 9 10 97 Melee 60 | . . . . 1 . . . . . . . . . . . . . . 2 57 Projectile 455 | . 26 14 12 148 6 1 4 . 4 . 5 63 . 3 10 62 40 9 8 40 AOE 4 | . . . . . . . . . . . . . . . . . . . . 4 Critical Strikes 49 | . . . . 6 . . . . . . . 3 . . . 6 7 . 1 26 Damage Taken 9524 | . 255 176 109 2144 107 11 39 . 62 . 33 1119 . 92 246 1283 1020 244 222 2362 Core 3028 | . 54 . 10 414 15 . 6 . 16 . 20 612 . 72 35 123 335 28 94 1194 Absorbed by Shields 36 | . . . . . . . . . . . . . . . . . . . . 36 Ignored by Resistances 115 | . . . . . . . . . . . . . . . . 63 52 . . . Regen/Repaired (Parts) 94 | . . . . 94 . . . . . . . . . . . . . . . . Core Remaining (%) 64 | 100 78 . 97 24 . . . . 94 . . . . 17 . . . . 38 . Volleys Fired 175 | 6 20 9 . 69 . . . . 8 . . 2 . 2 . 24 . . 10 25 Largest 2 | 2 2 2 . 2 . . . . 1 . . 1 . 1 . 2 . . 1 1 Hottest 162 | 60 40 40 . 65 . . . . 30 . . 39 . 47 . 162 . . 47 98 Shots Fired 254 | 12 31 18 . 121 . . . . 8 . . 2 . 2 . 24 . . 10 26 Gun 163 | 12 31 18 . 101 . . . . . . . 1 . . . . . . . . Cannon 69 | . . . . 7 . . . . . . . . . 2 . 24 . . 10 26 Launcher 22 | . . . . 13 . . . . 8 . . 1 . . . . . . . . Special . | . . . . . . . . . . . . . . . . . . . . . Kinetic 201 | 6 31 18 . 108 . . . . . . . 1 . 2 . . . . 10 25 Thermal 7 | 6 . . . . . . . . . . . . . . . . . . . 1 Explosive 22 | . . . . 13 . . . . 8 . . 1 . . . . . . . . Electromagnetic 24 | . . . . . . . . . . . . . . . . 24 . . . . Robot Hit Streak 15 | 7 10 13 . 15 . . . . . . . . . 4 . 3 . . 5 7 Robot Miss Streak 5 | 1 2 1 . 5 . . . . . . . . . 1 . 4 . . 1 3 Penetration Max . | . . . . . . . . . . . . . . . . . . . . . Secondary Targets 2 | . . . . 2 . . . . . . . . . . . . . . . . Max Gunslinging Chain 1 | . . . . 1 . . . . . . . . . . . . . . . . Shots Hit Robots 174 | 10 16 15 . 87 9 . . . . . . . . 3 6 17 . . 8 3 Core Hits 105 | 4 10 7 . 52 5 . . . 3 . . 4 . 2 3 12 . . 1 2 Critical Kills . | . . . . . . . . . . . . . . . . . . . . . Critical Parts Destroyed 1 | . . . . 1 . . . . . . . . . . . . . . . . Critical Strikes 6 | . . . . 2 . . . . . . . . . 1 . . . . 3 . Destroy 1 | . . . . 1 . . . . . . . . . . . . . . . . Blast 4 | . . . . . . . . . . . . . . 1 . . . . 3 . Sever 1 | . . . . 1 . . . . . . . . . . . . . . . . Melee Attacks 89 | . . . . 32 25 . . . . 2 . . 1 3 20 4 1 . . 1 Impact . | . . . . . . . . . . . . . . . . . . . . . Slashing 67 | . . . . 32 25 . . . . 1 . . 1 1 7 . . . . . Piercing 22 | . . . . . . . . . . 1 . . . 2 13 4 1 . . 1 Sneak Attacks 23 | . . . . 8 8 . . . . . . . . . 6 1 . . . . Combat Hostiles . | . . . . . . . . . . . . . . . . . . . . . Follow-up Attacks 1 | . . . . . . . . . . . . . . 1 . . . . . . Damage Inflicted 6418 | 121 192 155 . 2859 978 . . . 163 . . 292 . 144 441 696 . . 272 105 Guns 1491 | 121 192 155 . 1023 . . . . . . . . . . . . . . . . Cannons 1055 | . . . . 75 . . . . . . . . . 68 . 540 . . 272 100 Explosions 808 | . . . . 353 . . . . 163 . . 292 . . . . . . . . Melee 3059 | . . . . 1408 978 . . . . . . . . 76 441 156 . . . . Ramming 5 | . . . . . . . . . . . . . . . . . . . . 5 Kinetic 1950 | 65 192 155 . 1098 . . . . . . . . . 68 . . . . 272 100 Thermal 56 | 56 . . . . . . . . . . . . . . . . . . . . Explosive 808 | . . . . 353 . . . . 163 . . 292 . . . . . . . . Electromagnetic 540 | . . . . . . . . . . . . . . . . 540 . . . . Impact . | . . . . . . . . . . . . . . . . . . . . . Slashing 2423 | . . . . 1408 978 . . . . . . . . 37 . . . . . . Piercing 636 | . . . . . . . . . . . . . . 39 441 156 . . . . Highest Corruption 7 | . . . . 5 . . . . . . . 1 1 . . 3 3 3 3 7 Average Corruption 3 | . . . . 5 . . . . . . . 1 1 . . 2 3 3 3 4 Corruption Purged . | . . . . . . . . . . . . . . . . . . . . . Corruption Blocked . | . . . . . . . . . . . . . . . . . . . . . Effects 19 | . . . . 6 . . . . . . . . 1 . . 1 2 . 3 6 Message Errors 5 | . . . . . . . . . . . . . . . . . 2 . 1 2 Matter Fused 1 | . . . . 1 . . . . . . . . . . . . . . . . Heat Flow Errors 2 | . . . . 2 . . . . . . . . . . . . . . . . Energy Discharges 1 | . . . . 1 . . . . . . . . . . . . . . . . Parts Fused 2 | . . . . 1 . . . . . . . . . . . . . . 1 . Data Loss (minor) 5 | . . . . . . . . . . . . . 1 . . . . . 1 3 Data Loss (major) 1 | . . . . 1 . . . . . . . . . . . . . . . . Misfires 1 | . . . . . . . . . . . . . . . . . . . . 1 Weapon Failures 1 | . . . . . . . . . . . . . . . . 1 . . . . Overload Shots . | . . . . . . . . . . . . . . . . . . . . . Overflow Damage 651 | . . . . 210 290 . . . . . . . . 6 105 5 . . 35 . Projectiles 46 | . . . . . . . . . . . . . . 6 . 5 . . 35 . Explosions . | . . . . . . . . . . . . . . . . . . . . . Melee 605 | . . . . 210 290 . . . . . . . . . 105 . . . . . Knockbacks 11 | . . . . 7 . . . . . . . . . . . . . . 4 . Impact . | . . . . . . . . . . . . . . . . . . . . . Kinetic 11 | . . . . 7 . . . . . . . . . . . . . . 4 . Secondary . | . . . . . . . . . . . . . . . . . . . . . Self-Inflicted Damage 64 | . . . . . . . . . . . . 62 . . . . . . . 2 Shots 1 | . . . . . . . . . . . . 1 . . . . . . . . Rammed 2 | . . . . . . . . . . . . . . . . . . . . 2 Targets Rammed 2 | . . . . . . . . . . . . . . . . . . . . 2 Kicked . | . . . . . . . . . . . . . . . . . . . . . Crushed . | . . . . . . . . . . . . . . . . . . . . . Highest Temperature 234 | . . 1 . 234 . . . . . . 3 18 . . . 196 . . 8 21 Average Temperature 52 | . . 1 . 33 . . . . . . 3 18 . . . 68 . . 8 10 Received Heat Transfer 1293 | . 60 81 6 243 15 . 6 . . . 12 270 . 9 9 186 207 54 54 81 Siege Activations . | . . . . . . . . . . . . . . . . . . . . . Martial Activations . | . . . . . . . . . . . . . . . . . . . . . Shielding Activations . | . . . . . . . . . . . . . . . . . . . . . Robots Disrupted 1 | . . . . . . . . . . . . . . . . 1 . . . . Combat Hostiles 1 | . . . . . . . . . . . . . . . . 1 . . . . Robots Corrupted 2 | . . . . . . . . . . . . . . . . 2 . . . . Combat Hostiles 2 | . . . . . . . . . . . . . . . . 2 . . . . Parts Fried 3 | . . . . . . . . . . . . . . . . 3 . . . . Impact Corruptions . | . . . . . . . . . . . . . . . . . . . . . Robots Melted . | . . . . . . . . . . . . . . . . . . . . . Combat Hostiles . | . . . . . . . . . . . . . . . . . . . . . Parts Melted 2 | . . . . . . . . . . . . . . . . . . . . 2 Heat Transferred 125 | 125 . . . . . . . . . . . . . . . . . . . . Parts Sabotaged . | . . . . . . . . . . . . . . . . . . . . . Parts Stolen . | . . . . . . . . . . . . . . . . . . . . . Parts Stripped . | . . . . . . . . . . . . . . . . . . . . . Power Chain Reactions . | . . . . . . . . . . . . . . . . . . . . . Alert | -11 -10 -9 -9 -8 -7 -7 -7 -7 -6 -6 -6 -6 -6 -5 -5 -5 -5 -5 -5 -4 ------- Run | Yrd Mat Mat Min Mat Fac Low Low Dat Pro Fac Low Low Zio Pro Fac Ext Cet Arc Hub Fac Maximum Alert Level 3 | . . . . 2 1 . . . . . . . . . 2 3 1 . . . Low Security (%) 65 | 100 100 100 100 72 96 . . . . 100 . . . . . 23 . 100 100 100 Level 1 17 | . . . . 23 3 . . . . . . . . . 8 42 100 . . . Level 2 15 | . . . . 3 . . . . . . . . . . 91 23 . . . . Level 3 1 | . . . . . . . . . . . . . . . . 10 . . . . Level 4 . | . . . . . . . . . . . . . . . . . . . . . Level 5 . | . . . . . . . . . . . . . . . . . . . . . High Security . | . . . . . . . . . . . . . . . . . . . . . Max Security . | . . . . . . . . . . . . . . . . . . . . . Peak Influence 786 | 5 90 40 3 419 200 . . . . 23 . . . . 636 786 390 103 153 158 Initial 600 | . . 22 3 . 188 . . . . . . . . . 600 185 390 103 28 70 Average 183 | . 51 14 . 122 166 . . . . 5 . . . . 530 346 326 99 51 31 Influence Increases 4651 | 15 175 70 . 1024 200 . . . 30 49 15 90 . 37 1023 1319 9 . 189 406 Destroy 0b10 Robot/C 1540 | . 140 60 . 380 . . . . 20 . . . . 20 120 680 . . 100 20 Destroy 0b10 Robot/NC 185 | 15 . . . 65 40 . . . . . . . . 5 15 35 . . 5 5 Destroy Leader 234 | . 30 10 . 78 2 . . . 10 . . . . . . 62 . . 30 12 Allied During Kill 474 | . . . . . . . . . . . . . . 12 31 386 . . 35 10 Successful Hack 67 | . 5 . . 6 22 . . . . 18 . . . . . 7 9 . . . Disable Machine 195 | . . . . 105 . . . . . 15 . . . . 15 15 . . 15 30 Destroy Structure 216 | . . . . 75 16 . . . . 1 . . . . 32 44 . . 4 44 Advance Influence 600 | . . . . . . . . . . . . . . . 600 . . . . . Partial Spotted 135 | . . . . 30 30 . . . . 15 . . . . 15 30 . . . 15 Lose Combat Pursuer 1005 | . . . . 285 90 . . . . . 15 90 . . 195 60 . . . 270 Influence Decreases 4493 | 15 120 115 10 609 441 136 38 . 30 26 38 25 65 37 644 1000 448 176 129 391 Entered New Map 1201 | . . 33 7 . 227 66 8 . . . 9 . 65 . . 194 308 156 55 73 Time Decay 2125 | 15 120 82 3 369 214 70 30 . 30 26 29 25 . 29 294 446 40 10 50 243 Search Patrol Dispatched 300 | . . . . 100 . . . . . . . . . . 200 . . . . . Lost Part 436 | . . . . 140 . . . . . . . . . . 20 90 100 10 6 70 Lost Ally 431 | . . . . . . . . . . . . . . 8 130 270 . . 18 5 Squads Dispatched 17 | . 1 2 . 2 1 . . . . . . . . . . 2 1 . 2 6 Investigation 4 | . . . . 1 . . . . . . . . . . . 1 1 . . 1 Extermination 3 | . . . . . 1 . . . . . . . . . . . . . . 2 Reinforcement 10 | . 1 2 . 1 . . . . . . . . . . . 1 . . 2 3 Assault . | . . . . . . . . . . . . . . . . . . . . . Garrison . | . . . . . . . . . . . . . . . . . . . . . Intercept . | . . . . . . . . . . . . . . . . . . . . . Searches Triggered 3 | . . . . 1 . . . . . . . . . . 2 . . . . . Data Miner Redirects 1 | . . . . . . . . . . . . . . . . . . . . 1 Construction Impeded 2 | . . . . . . . . . . . . . . . . 1 . . 1 . Haulers Reinforced . | . . . . . . . . . . . . . . . . . . . . . Active Scanning Responses . | . . . . . . . . . . . . . . . . . . . . . Cargo Convoy Interrupts . | . . . . . . . . . . . . . . . . . . . . . Stealth | -11 -10 -9 -9 -8 -7 -7 -7 -7 -6 -6 -6 -6 -6 -5 -5 -5 -5 -5 -5 -4 --------- Run | Yrd Mat Mat Min Mat Fac Low Low Dat Pro Fac Low Low Zio Pro Fac Ext Cet Arc Hub Fac Distress Signals 17 | . . 1 . 8 1 . . . . . . . . . . 2 1 . 1 3 Communications Jammed . | . . . . . . . . . . . . . . . . . . . . . Distress Signals . | . . . . . . . . . . . . . . . . . . . . . Times Spotted 225 | . 11 7 6 60 12 2 3 . 1 1 1 10 . 3 18 39 8 4 5 34 Peak Tracking Total 13 | . 5 5 5 8 3 2 3 . 1 1 1 8 . 2 5 6 8 4 3 13 Tactical Retreats 33 | . . . . 11 3 . . . . . 1 2 . . 6 3 . . . 7 Traps | -11 -10 -9 -9 -8 -7 -7 -7 -7 -6 -6 -6 -6 -6 -5 -5 -5 -5 -5 -5 -4 ------- Run | Yrd Mat Mat Min Mat Fac Low Low Dat Pro Fac Low Low Zio Pro Fac Ext Cet Arc Hub Fac Traps Triggered 14 | . . . . 1 1 . . . . . . . . . . 7 . . . 5 Indirectly . | . . . . . . . . . . . . . . . . . . . . . Trap Hack Attempts . | . . . . . . . . . . . . . . . . . . . . . Triggered . | . . . . . . . . . . . . . . . . . . . . . Disarmed . | . . . . . . . . . . . . . . . . . . . . . Reprogrammed . | . . . . . . . . . . . . . . . . . . . . . Reused . | . . . . . . . . . . . . . . . . . . . . . Traps Extracted . | . . . . . . . . . . . . . . . . . . . . . Installed . | . . . . . . . . . . . . . . . . . . . . . Triggered . | . . . . . . . . . . . . . . . . . . . . . Machines | -11 -10 -9 -9 -8 -7 -7 -7 -7 -6 -6 -6 -6 -6 -5 -5 -5 -5 -5 -5 -4 ---------- Run | Yrd Mat Mat Min Mat Fac Low Low Dat Pro Fac Low Low Zio Pro Fac Ext Cet Arc Hub Fac Machines Disabled 14 | . . . . 7 . . . . . 1 . . . . 1 2 . . 1 2 Max in Single Turn 1 | . . . . 1 . . . . . 1 . . . . . 1 . . 1 1 Garrison Access 1 | . . . . 1 . . . . . . . . . . . . . . . . Energy Cycler 2 | . . . . . . . . . . . . . . . . 2 . . . . Machines Repaired . | . . . . . . . . . . . . . . . . . . . . . Machines Dismantled . | . . . . . . . . . . . . . . . . . . . . . Machines Sabotaged . | . . . . . . . . . . . . . . . . . . . . . Overloaded Fab Kills . | . . . . . . . . . . . . . . . . . . . . . Hacking | -11 -10 -9 -9 -8 -7 -7 -7 -7 -6 -6 -6 -6 -6 -5 -5 -5 -5 -5 -5 -4 --------- Run | Yrd Mat Mat Min Mat Fac Low Low Dat Pro Fac Low Low Zio Pro Fac Ext Cet Arc Hub Fac Machines Accessed 37 | . 3 . . 9 6 . . 4 1 2 1 . . . 3 3 3 . . 2 Terminals 15 | . 3 . . 3 2 . . . 1 1 . . . . . 2 3 . . . Fabricators 4 | . . . . . 1 . . . . . . . . . 1 . . . . 2 Repair Stations 1 | . . . . 1 . . . . . . . . . . . . . . . . Recycling Units 5 | . . . . 2 1 . . . . . . . . . 1 1 . . . . Scanalyzers 4 | . . . . 2 2 . . . . . . . . . . . . . . . Garrison Access 3 | . . . . 1 . . . . . 1 . . . . 1 . . . . . Total Hacks 105 | . 10 . . 21 11 . . 34 1 3 1 . . . 4 7 9 . . 4 Successful 64 | . 2 . . 12 4 . . 34 1 1 1 . . . 1 3 2 . . 3 Failed 40 | . 8 . . 9 6 . . . . 2 . . . . 3 4 7 . . 1 Catastrophic 8 | . 1 . . 1 1 . . . . 1 . . . . . 1 2 . . 1 Database Lockouts 1 | . . . . . 1 . . . . . . . . . . . . . . . Manual 44 | . . . . 2 . . . . 1 1 . . 1 . 17 4 . . 9 9 Terminals 37 | . 10 . . 6 3 . . . 1 2 . . . . . 6 9 . . . Fabricators 7 | . . . . . 1 . . . . . . . . . 2 . . . . 4 Repair Stations 4 | . . . . 4 . . . . . . . . . . . . . . . . Recycling Units 7 | . . . . 4 1 . . . . . . . . . 1 1 . . . . Scanalyzers 11 | . . . . 5 6 . . . . . . . . . . . . . . . Garrison Access 4 | . . . . 2 . . . . . 1 . . . . 1 . . . . . Terminal Hacks 44 | . 2 . . 1 1 . . 34 1 . 1 . . . . 2 2 . . . Record 14 | . . . . . . . . 11 1 . . . . . . . 2 . . . Part Schematic 13 | . . . . . . . . 13 . . . . . . . . . . . . Robot Schematic 7 | . . . . . . . . 7 . . . . . . . . . . . . Robot Analysis 1 | . 1 . . . . . . . . . . . . . . . . . . . Prototype ID Bank 3 | . . . . . . . . 3 . . . . . . . . . . . . Open Door 3 | . . . . . . . . . . . 1 . . . . 2 . . . . Terminal Index 2 | . 1 . . . 1 . . . . . . . . . . . . . . . Zone Layout 1 | . . . . 1 . . . . . . . . . . . . . . . . Fabricator Hacks 4 | . . . . . . . . . . . . . . . 1 . . . . 3 Load Schematic 2 | . . . . . . . . . . . . . . . . . . . . 2 Build 2 | . . . . . . . . . . . . . . . 1 . . . . 1 Repair Station Hacks 3 | . . . . 3 . . . . . . . . . . . . . . . . Scan Component 2 | . . . . 2 . . . . . . . . . . . . . . . . Repair 1 | . . . . 1 . . . . . . . . . . . . . . . . Recycling Unit Hacks 3 | . . . . 2 . . . . . . . . . . . 1 . . . . Report Inventory 3 | . . . . 2 . . . . . . . . . . . 1 . . . . Scanalyzer 7 | . . . . 4 3 . . . . . . . . . . . . . . . Retrieve Study 7 | . . . . 4 3 . . . . . . . . . . . . . . . Garrison Access Hacks 1 | . . . . 1 . . . . . . . . . . . . . . . . Seal Access 1 | . . . . 1 . . . . . . . . . . . . . . . . Unauthorized Hacks 2 | . . . . 1 . . . . . 1 . . . . . . . . . . Terminals 2 | . . . . 1 . . . . . 1 . . . . . . . . . . Assimilate 1 | . . . . . . . . . . 1 . . . . . . . . . . Botnet 1 | . . . . 1 . . . . . . . . . . . . . . . . Fabricators . | . . . . . . . . . . . . . . . . . . . . . Repair Stations . | . . . . . . . . . . . . . . . . . . . . . Recycling Units . | . . . . . . . . . . . . . . . . . . . . . Scanalyzers . | . . . . . . . . . . . . . . . . . . . . . Garrison Access . | . . . . . . . . . . . . . . . . . . . . . Data Cores Recovered . | . . . . . . . . . . . . . . . . . . . . . Used . | . . . . . . . . . . . . . . . . . . . . . Hacking Detections 24 | . 2 . . 7 6 . . . . 2 . . . . 1 1 3 . . 2 Full Trace Events 4 | . . . . 1 . . . . . . . . . . . 1 1 . . 1 Feedback Events . | . . . . . . . . . . . . . . . . . . . . . Feedback Blocked . | . . . . . . . . . . . . . . . . . . . . . Robot Schematics Acquired 7 | . . . . . . . . 7 . . . . . . . . . . . . Robots Built 2 | . . . . . . . . . . . . . . . 2 . . . . . Authchips . | . . . . . . . . . . . . . . . . . . . . . Time 152 | . . . . . . . . . . . . . . . 152 . . . . . Total Robot Build Rating 10 | . . . . . . . . . . . . . . . 10 . . . . . Part Schematics Acquired 13 | . . . . . . . . 13 . . . . . . . . . . . . Parts Built 2 | . . . . . . . . . . . . . . . . . . . . 2 Authchips . | . . . . . . . . . . . . . . . . . . . . . Time 106 | . . . . . . . . . . . . . . . . . . . . 106 Total Part Build Rating 12 | . . . . . . . . . . . . . . . . . . . . 12 Part Studies Acquired 6 | . . . . 3 3 . . . . . . . . . . . . . . . Parts Repaired 1 | . . . . 1 . . . . . . . . . . . . . . . . Time 26 | . . . . 26 . . . . . . . . . . . . . . . . Parts Recycled . | . . . . . . . . . . . . . . . . . . . . . Recycled Matter . | . . . . . . . . . . . . . . . . . . . . . Retrieved Matter . | . . . . . . . . . . . . . . . . . . . . . Retrieved Components . | . . . . . . . . . . . . . . . . . . . . . Parts Scanalyzed . | . . . . . . . . . . . . . . . . . . . . . Part Schematics Acquired . | . . . . . . . . . . . . . . . . . . . . . Parts Damaged . | . . . . . . . . . . . . . . . . . . . . . Bothacking | -11 -10 -9 -9 -8 -7 -7 -7 -7 -6 -6 -6 -6 -6 -5 -5 -5 -5 -5 -5 -4 ------------ Run | Yrd Mat Mat Min Mat Fac Low Low Dat Pro Fac Low Low Zio Pro Fac Ext Cet Arc Hub Fac Used RIF Installer . | . . . . . . . . . . . . . . . . . . . . . Robots Hacked . | . . . . . . . . . . . . . . . . . . . . . Non-combat . | . . . . . . . . . . . . . . . . . . . . . Combat . | . . . . . . . . . . . . . . . . . . . . . Robot Hacks Applied . | . . . . . . . . . . . . . . . . . . . . . Relay Couplers Released . | . . . . . . . . . . . . . . . . . . . . . Fabnet Peak Effective % . | . . . . . . . . . . . . . . . . . . . . . Robots Rewired 11 | . . . . . . . . . . . . . . . . 10 . . . 1 Allies Hacked 1 | . . . . . . . . . . . . . . 1 . . . . . . Hacks Repelled . | . . . . . . . . . . . . . . . . . . . . . Allies | -11 -10 -9 -9 -8 -7 -7 -7 -7 -6 -6 -6 -6 -6 -5 -5 -5 -5 -5 -5 -4 -------- Run | Yrd Mat Mat Min Mat Fac Low Low Dat Pro Fac Low Low Zio Pro Fac Ext Cet Arc Hub Fac Total Allies 32 | . . . . . . . . . . . . . 7 . 3 17 . . 4 1 Largest Group 13 | . . . . . . . . . . . . . 7 7 5 13 . . 4 5 Highest-Rated Group 501 | . . . . . . . . . . . . . 240 240 192 501 . . 111 135 Highest-Rated Ally 85 | . . . . . . . . . . . . . 42 42 43 85 . . 28 31 Zionite Dispatches 8 | . . . . . . . . . . . . . . . 2 2 . . 3 1 Heavy 1 | . . . . . . . . . . . . . . . . 1 . . . . Recon 3 | . . . . . . . . . . . . . . . 1 . . . 1 1 Fire 1 | . . . . . . . . . . . . . . . . . . . 1 . Defense Resupply 1 | . . . . . . . . . . . . . . . . 1 . . . . Infowar Resupply 1 | . . . . . . . . . . . . . . . . . . . 1 . Hover Resupply 1 | . . . . . . . . . . . . . . . 1 . . . . . Total Orders 10 | . . . . . . . . . . . . . . . 2 5 . . 2 1 ROAM 1 | . . . . . . . . . . . . . . . . 1 . . . . DROP 3 | . . . . . . . . . . . . . . . 1 1 . . 1 . EXPLORE 6 | . . . . . . . . . . . . . . . 1 3 . . 1 1 Ally Attacks 209 | . . . . . . . . . . . . . . 14 35 136 . . 15 9 Total Damage 6066 | . . . . . . . . . . . . . . 189 1362 4181 . . 226 108 Kills 49 | . . . . . . . . . . . . . . 1 5 36 . . 5 2 Allies Corrupted 1 | . . . . . . . . . . . . . . . . . . . . 1 Allies Melted 1 | . . . . . . . . . . . . . . . . 1 . . . . Intel | -11 -10 -9 -9 -8 -7 -7 -7 -7 -6 -6 -6 -6 -6 -5 -5 -5 -5 -5 -5 -4 ------- Run | Yrd Mat Mat Min Mat Fac Low Low Dat Pro Fac Low Low Zio Pro Fac Ext Cet Arc Hub Fac Active Infowar (turns) 6315 | . . 202 244 1780 448 146 80 20 114 111 205 84 962 121 386 935 . . 6 471 Optics 2097 | . . . . 923 448 146 80 20 114 111 205 50 . . . . . . . . Sensors 3949 | . . . . 1019 179 84 80 20 114 111 205 82 962 89 386 143 . . 4 471 Terrain 743 | . . 202 244 297 . . . . . . . . . . . . . . . . Structural 1058 | . . . . . . . . . . . . . . . 123 935 . . . . Cloaking 440 | . . . . . . . . . . . . . 314 121 5 . . . . . Jamming 44 | . . . . . . . . . . . . . . . . . . . 6 38 Robot Analysis Total 1 | . 1 . . . . . . . . . . . . . . . . . . . Derelict Logs Recovered 9 | . . . . . . 2 . . 2 . 3 1 1 . . . . . . . Drone Launches 9 | . . . . . . . . . . . . . . . 1 3 2 . 2 1 Drone Recoveries 4 | . . . . . . . . . . . . . . . 1 3 . . . . Zionite Intel Received 4 | . . . . . . . . . . . . . . . 2 . . . . 2 Prototype Stockpiles 1 | . . . . . . . . . . . . . . . 1 . . . . . Unaware Analyses 1 | . . . . . . . . . . . . . . . 1 . . . . . Trap Installations 1 | . . . . . . . . . . . . . . . . . . . . 1 Active Terminals 1 | . . . . . . . . . . . . . . . . . . . . 1 Exploration | -11 -10 -9 -9 -8 -7 -7 -7 -7 -6 -6 -6 -6 -6 -5 -5 -5 -5 -5 -5 -4 ------------- Run | Yrd Mat Mat Min Mat Fac Low Low Dat Pro Fac Low Low Zio Pro Fac Ext Cet Arc Hub Fac Turns Passed 8404 | 164 284 202 244 1803 448 146 80 20 114 111 205 102 1294 375 657 1119 96 21 148 771 Spaces Moved 9452 | 90 141 94 153 1584 748 497 300 77 363 346 745 226 950 255 691 816 182 55 148 991 Core 394 | 9 . . . 48 1 . . . . . . 97 167 . . 6 . . 8 58 Treads 536 | 81 141 94 153 67 . . . . . . . . . . . . . . . . Legs 395 | . . . . 395 . . . . . . . . . . . . . . . . Wheels 1042 | . . . . 61 . . . . . . . . 200 255 205 . . . 73 248 Hover 1827 | . . . . . . . . . . . . 1 583 . 340 810 85 . . 8 Flight 5258 | . . . . 1013 747 497 300 77 363 346 745 128 . . 146 . 97 55 67 677 Fastest Speed 26 | 50 160 160 160 29 26 26 26 26 26 26 26 26 50 100 37 50 37 37 40 34 Average Speed 66 | 149 160 160 160 83 27 26 26 26 26 26 26 40 122 106 72 78 44 37 63 52 Slowest Speed 800 | 160 160 160 160 240 300 26 26 26 26 26 26 275 156 115 160 800 111 40 200 350 Overloaded Moves . | . . . . . . . . . . . . . . . . . . . . . Propulsion Burnouts . | . . . . . . . . . . . . . . . . . . . . . Robots Hopped 20 | . . . . . . . 1 . . . . . . . . . . . . 19 Potential Cave-ins . | . . . . . . . . . . . . . . . . . . . . . Cave-ins Triggered 1 | . . . . 1 . . . . . . . . . . . . . . . . Exploration Rate (%) 46 | 4 36 14 32 90 16 61 38 72 62 11 80 46 83 46 17 73 68 74 25 19 Regions Visited 20 Branch Regions 13 Pre-discovered Areas 5 | . . . . . . 1 . 1 . . . . 3 . . . . . . . Known Exits Taken 4 | . . . . . . . . . . 1 1 . . 1 . . . . 1 . Unknown Exits Taken 16 | 1 1 1 1 1 1 1 1 1 1 . . 1 1 . 1 1 1 1 . . Scrap Searched 14 | . . . . . . 1 3 . 3 . 2 1 2 2 . . . . . . Spaces Dug 62 | . . . . 10 16 . . . . 1 . 9 . . 11 . . . . 15 Terrain Destroyed 167 | . . . . 81 16 . . . 23 1 . 9 . . 11 . . . 2 24 Melee 38 | . . . . 10 16 . . . . 1 . . . . 11 . . . . . Projectile 27 | . . . . 1 . . . . . . . . . . . . . . 2 24 AOE 102 | . . . . 70 . . . . 23 . . 9 . . . . . . . . Terrain Rammed . | . . . . . . . . . . . . . . . . . . . . . Walls Destroyed . | . . . . . . . . . . . . . . . . . . . . . Machines Disabled . | . . . . . . . . . . . . . . . . . . . . . Actions | -11 -10 -9 -9 -8 -7 -7 -7 -7 -6 -6 -6 -6 -6 -5 -5 -5 -5 -5 -5 -4 --------- Run | Yrd Mat Mat Min Mat Fac Low Low Dat Pro Fac Low Low Zio Pro Fac Ext Cet Arc Hub Fac Total 11136 | 105 170 131 152 1889 939 513 299 76 373 363 755 234 1081 349 815 1262 195 54 188 1193 Wait 927 | . 2 19 . 140 148 17 . . 1 . 11 1 111 84 63 196 2 . 16 116 Move 9394 | 89 140 93 152 1583 747 496 297 76 362 345 744 225 949 254 690 815 181 54 147 955 Hop 18 | . . . . . . . 1 . . . . . . . . . . . . 17 Pick Up 80 | 4 4 4 . 21 4 . . . 1 4 . 1 6 1 8 5 . . 2 15 Fast Attach 68 | 6 1 1 . 15 1 . . . . 3 . . 5 2 9 7 . . 8 10 Attach 51 | . . 2 . 7 1 . . . 1 1 . 5 5 2 4 6 5 . 2 10 Detach 14 | . . . . 1 . . . . . . . . 3 . 3 5 . . 2 . Swap 28 | . 2 . . 12 . . 1 . . 2 . . . 1 6 3 . . . 1 Drop 56 | . 1 3 . 9 1 . . . . 6 . . 1 . 15 7 3 . 1 9 Fire 175 | 6 20 9 . 69 . . . . 8 . . 2 . 2 . 24 . . 10 25 Melee 85 | . . . . 32 25 . . . . 2 . . 1 2 17 4 1 . . 1 Ram 2 | . . . . . . . . . . . . . . . . . . . . 2 Kick . | . . . . . . . . . . . . . . . . . . . . . Crush . | . . . . . . . . . . . . . . . . . . . . . Escape Stasis 132 | . . . . . 12 . . . . . . . . . . 91 . . . 29 Rewire 106 | . . . . . . . . . . . . . . 1 . 99 3 . . 3 Trap . | . . . . . . . . . . . . . . . . . . . . . Miscellaneous . | . . . . . . . . . . . . . . . . . . . . . Route ------- -11/Scrapyard -10/Materials -9/Materials -9/Mines (discovered 2 exits: *Mat x2) -8/Materials (discovered 2 exits: *Fac x2) -7/Factory -7/Lower Caves -7/Lower Caves -7/Data Miner -6/Proximity Caves -6/Factory (discovered 2 exits: Fac / *Low) -6/Lower Caves -6/Lower Caves -6/Zion -5/Proximity Caves -5/Factory (discovered 5 exits: *Fac x2 / Upp x2 / *Ext) -5/Extension (discovered 3 exits: *Fac x2 / *Cet) -5/Cetus (discovered 2 exits: *Fac / *Arc) -5/Archives -5/Hub_04(d) (discovered 2 exits: *Fac x2) -4/Factory History --------- Turn | Location | Event 11 | -11/Scrapyard | Discovered new exit (range 15) 165 | -11/Scrapyard | Entered Materials 307 | -10/Materials | Build established: Mutant 436 | -10/Materials | Discovered new exit (range 6) 449 | -10/Materials | Entered another Materials area 449 | -9/Materials | Evolved 2 slots: Utility x2 570 | -9/Materials | Discovered new exit (range 15) 651 | -9/Materials | Entered Mines 664 | -9/Mines | Discovered new exit (range 12) 879 | -9/Mines | Discovered new exit (range 10) 895 | -9/Mines | Entered Materials 895 | -8/Materials | Evolved 2 slots: Propulsion x1, Utility x1 941 | -8/Materials | Repaired Assault Rifle 1815 | -8/Materials | Build established: Scavenger-Mutant 2021 | -8/Materials | Lost 5 parts (2n1u2w) 2079 | -8/Materials | Core integrity fell below 50% 2202 | -8/Materials | Discovered new exit (range 9) 2233 | -8/Materials | Discovered new exit (range 13) 2438 | -8/Materials | Crushed by falling debris 2469 | -8/Materials | Lost 3 parts (1p1u1w) 2495 | -8/Materials | Search patrols dispatched 2698 | -8/Materials | Entered Factory 2698 | -7/Factory | Evolved 2 slots: Propulsion x1, Weapon x1 2930 | -7/Factory | Discovered new exit (range 8) 3061 | -7/Factory | Central database locked down 3146 | -7/Factory | Entered Lower Caves 3197 | -7/Lower Caves | Learned Factory stockpile data 3219 | -7/Lower Caves | Encountered a Warlord checkpoint 3248 | -7/Lower Caves | Build established: Sprinter 3290 | -7/Lower Caves | Discovered new exit (range 8) 3292 | -7/Lower Caves | Entered another Lower Caves area 3359 | -7/Lower Caves | Attracted the attention of an 0b10 checkpoint 3367 | -7/Lower Caves | Found DCF Scrap (15 items) 3371 | -7/Lower Caves | Discovered new exit (range 5) 3372 | -7/Lower Caves | Entered Data Miner 3372 | -7/Data Miner | Discovered new exit (range 6) 3376 | -7/Data Miner | Met Data Miner 3382 | -7/Data Miner | Learned location of Section 7 (-2) 3382 | -7/Data Miner | Acquired the access code to Warlord's prototype stash 3386 | -7/Data Miner | Received God Mode back door access code from Data Miner 3392 | -7/Data Miner | Entered Proximity Caves 3434 | -6/Proximity Caves | Learned location of 1 exit from Factory 3489 | -6/Proximity Caves | Discovered new exit (range 17) 3493 | -6/Proximity Caves | Learned Factory terminal intel 3506 | -6/Proximity Caves | Entered Factory 3506 | -6/Factory | Evolved 2 slots: Utility x2 3507 | -6/Factory | Identified exit to Factory 3509 | -6/Factory | Loaded intel: 26 terminal locations 3603 | -6/Factory | Discovered new exit (range 11) 3606 | -6/Factory | Identified exit to Lower Caves 3617 | -6/Factory | Entered Lower Caves 3634 | -6/Lower Caves | Learned Factory non-interactive machine intel 3646 | -6/Lower Caves | Learned location of 1 exit from Factory 3684 | -6/Lower Caves | Spotted B-75 Beast 3767 | -6/Lower Caves | Learned 12 Factory zone layouts 3815 | -6/Lower Caves | Discovered new exit (range 19) 3820 | -6/Lower Caves | Identified exit to Lower Caves 3822 | -6/Lower Caves | Entered another Lower Caves area 3828 | -6/Lower Caves | Build established: Hacker-Scout 3855 | -6/Lower Caves | Learned Factory emergency access door positions 3856 | -6/Lower Caves | Attracted the attention of an 0b10 base 3872 | -6/Lower Caves | Released all parts (6) 3877 | -6/Lower Caves | Core integrity fell below 50% 3901 | -6/Lower Caves | Lost 10 parts (1p5n2u2w) 3921 | -6/Lower Caves | Discovered new exit (range 7) 3924 | -6/Lower Caves | Entered Zion 3952 | -6/Zion | System corruption cleaned by Quarantine Array 4237 | -6/Zion | Found CR-A16's Pointy Stick 4306 | -6/Zion | Learned location of Quarantine (-2) 4319 | -6/Zion | Learned Factory terminal intel 4484 | -6/Zion | Received a visual enhancement algorithm 4489 | -6/Zion | Ran a visual enhancement algorithm 4524 | -6/Zion | Build established: Mutant 4596 | -6/Zion | Met Imprinter 4623 | -6/Zion | Imprinted 4626 | -6/Zion | Declared Zion's savior 4807 | -6/Zion | Gained Derelict followers 5125 | -6/Zion | Found Prototype Device 5125 | -6/Zion | Identified Bomb Factory No. 2 5157 | -6/Zion | Discovered new exit (range 14) 5186 | -6/Zion | Build established: Derelict-Mutant 5218 | -6/Zion | Entered Proximity Caves 5218 | -5/Proximity Caves | Accompanied by 7 allies 5297 | -5/Proximity Caves | Spotter reported a threat 5335 | -5/Proximity Caves | Spotter reported a threat 5353 | -5/Proximity Caves | Encountered a Derelict guarding a broken Freighter 5354 | -5/Proximity Caves | Spotter reported a threat 5407 | -5/Proximity Caves | Spotter reported a threat 5447 | -5/Proximity Caves | Attracted the attention of an 0b10 checkpoint 5473 | -5/Proximity Caves | Core integrity fell below 20% 5517 | -5/Proximity Caves | Build established: Derelict-Gladiator 5523 | -5/Proximity Caves | Discovered exit to Factory (range 6) 5593 | -5/Proximity Caves | Entered Factory 5593 | -5/Factory | Accompanied by 5 allies 5593 | -5/Factory | Evolved 2 slots: Utility x2 5594 | -5/Factory | Identified exit to Factory 5595 | -5/Factory | Identified exit to Upper Caves 5597 | -5/Factory | Loaded intel: 263 non-interactive machine locations 5598 | -5/Factory | Loaded intel: 28 terminal locations 5893 | -5/Factory | Search patrols dispatched 5934 | -5/Factory | Retrieved Zion intel report: Prototype Stockpiles 5935 | -5/Factory | Zion Hover Resupply teleported in 5938 | -5/Factory | Fabricated X-67 Chaingunner? 6089 | -5/Factory | Zion Recon squad teleported in 6152 | -5/Factory | Build established: Mutant 6193 | -5/Factory | Search patrols dispatched 6208 | -5/Factory | Retrieved Zion intel report: Unaware Analyses 6244 | -5/Factory | Discovered new exit (range 9) 6250 | -5/Factory | Entered Extension 6628 | -5/Extension | Zion Heavy squad teleported in 6740 | -5/Extension | Zion Defense Resupply teleported in 6784 | -5/Extension | Energy Cycler disabled 6785 | -5/Extension | Rescued a captive Derelict 6785 | -5/Extension | Rescued a captive Derelict 6786 | -5/Extension | Rescued a captive Derelict 6788 | -5/Extension | Rescued a captive Derelict 6788 | -5/Extension | Rescued a captive Derelict 6791 | -5/Extension | Rescued a captive Derelict 6791 | -5/Extension | Rescued a captive Derelict 6793 | -5/Extension | Rescued a captive Derelict 6793 | -5/Extension | Rescued a captive Derelict 6794 | -5/Extension | Rescued a captive Derelict 6844 | -5/Extension | Spotted B-75 Beast 6953 | -5/Extension | Build established: Commander-Gladiator 7166 | -5/Extension | Allies destroyed B-75 Beast 7197 | -5/Extension | Spotted B-75 Beast 7209 | -5/Extension | Allies destroyed B-75 Beast 7214 | -5/Extension | Discovered exit to Factory (range 15) 7261 | -5/Extension | Lost 8 allies 7347 | -5/Extension | Lost 4 allies 7355 | -5/Extension | Discovered new exit (range 16) 7356 | -5/Extension | Discovered exit to Factory (range 15) 7369 | -5/Extension | Lost 5 parts (1n2u2w) 7369 | -5/Extension | Entered Cetus 7376 | -5/Cetus | Spotted Cetus Guard 7376 | -5/Cetus | Spotted Cetus Guard 7377 | -5/Cetus | Spotted Cetus Guard 7390 | -5/Cetus | Discovered exit to Factory (range 16) 7413 | -5/Cetus | Spotted Cetus Guard 7460 | -5/Cetus | Lost 6 parts (2n3u1w) 7460 | -5/Cetus | Discovered new exit (range 16) 7465 | -5/Cetus | Entered Archives 7475 | -5/Archives | Core integrity fell below 50% 7475 | -5/Archives | Unable to access archive contents 7480 | -5/Archives | Discovered new exit (range 14) 7486 | -5/Archives | Entered Hub_04(d) 7489 | -5/Hub_04(d) | Zion Fire squad teleported in 7493 | -5/Hub_04(d) | Zion Recon squad teleported in 7506 | -5/Hub_04(d) | Ran a visual enhancement algorithm 7507 | -5/Hub_04(d) | Zion Infowar Resupply teleported in 7511 | -5/Hub_04(d) | Lost 3 parts (1n1u1w) 7513 | -5/Hub_04(d) | Discovered exit to Factory (range 37) 7572 | -5/Hub_04(d) | Discovered exit to Factory (range 8) 7585 | -5/Hub_04(d) | Build established: Mutant 7634 | -5/Hub_04(d) | Entered Factory 7634 | -4/Factory | Accompanied by 4 allies 7634 | -4/Factory | Evolved 2 slots: Propulsion x2 7762 | -4/Factory | Incoming investigation squad redirected 7841 | -4/Factory | Fabricated Antigrav System? 7928 | -4/Factory | Spotted B-86 Titan 8003 | -4/Factory | Lost 4 allies 8017 | -4/Factory | Retrieved Zion intel report: Active Terminals 8083 | -4/Factory | Retrieved Zion intel report: Trap Installations 8084 | -4/Factory | Zion Recon squad teleported in 8342 | -4/Factory | Core integrity fell below 50% 8396 | -4/Factory | Core integrity fell below 20% 8404 | -4/Factory | Lost 5 parts (5n) 8405 | -4/Factory | Destroyed by P-70 Sage via exploding Power Conduit Last Messages --------------- 08335_ Mak. Terrain Scan Processor severed. 08335_ Field Propulsion Array destroyed. 08336_ Dropped Lrg. Storage Unit. 08338_ Field Propulsion Array destroyed. 08339_ Adv. Signal Interpreter severed. 08341_ Imp. Terrain Scan Processor severed. 08350_ Matter Pump disabled. 08357_ Fabricator disabled. 08362_ R-10 Processor collects Enh. Gauss Cannon. 08364_ W-44 Eye sends out distress signal. 08365_ Field Propulsion Array destroyed. 08378_ Antigrav System severed. 08388_ W-44 Eye sends out distress signal. 08390_ Acquired 138 matter. 08395_ System corrupted: Component data lost. 08396_ ALERT: Potential suspicious activity detected, Programmers report to Factory Zone 7K. 08402_ Slammed into C-35 Carver. 08405_ Power Conduit explodes. 08405_ C-35 Carver destroyed. Map ----- +----------------------------------------------------+ | ???????????????????????# ######## #?###### | | ???????????????????????# """ """ # # #?# | | ???????????????????????# """ """ # """ # #?# ]]! | | ???????????????????????# """ """ # """ # #?# ]!! | | ???????????????????????# # """ # #?# ]!! | | ???????????????????????# """ """ #! / #?# | | ???????????????????????# """ """ # # #?# | | ???????????????????????# """ """ ######## #####+## | | ???????????????????????# + #? | | ??????????#????????????# # ######## #? | | ??????????# ???????#######+### #??????# ## | | ???????? ! ####### #??????# | | ???????? % ######??????# | | ???????? % #????########+## | | ???????? % #????# | | ???????? % #????# | | ????????? #????# | | ????????? ####### #????# | | ??????????# ???????### ###????# | | ??????????########?########## #??????# ! | | ??????????????######;;;;;;;## ######?# !!! | | ??????????????# ! # #?# ! | | ??????????????# # #?# | | ??????????????# # """ #?# | | ??????????????# c # """ #?# | | ??????????????# /!@ p """ #?# | | ??????????????# % ] ! # #?########### | | ??????????????############### #??????# | | ??????????????# """" # #??????# | | ??????????????# ""S"" """ # ######## | | ??????????????# "" "" ""??+ | | ??????????????# ????# ###+######## | | ???????????????? ??????# # #???# | | ?????????????????#+#???#+#?# # """ #???# | | ?????????????????# #???# ### #! """ #???# | | ?????????????????# #???# # """ #???# | | ???????????????### ##??# # ##### | | ???????????????# #### ######+## | | ?????##????????# | | ?????#"######### | | ?????# # #### | | ?????# # """ """ """ """ """ """ # | | ?????# # """ """ """ """ """ """ # | | ?????# ^# """ """ """ """ """ """ # | | ?????# + + ! | | ?????# # # | | ????## # # | | ????#" ################################### | | ????############?????????????????????????????????? | | | +----------------------------------------------------+ Best States ------------- Heat Dissipation 59 Energy Generation 19 Energy Capacity 515 Matter Stores 300 Matter Capacity 300 Sight Range 20 Robot Scan Range 16 Terrain Scan Range 14 Terrain Scan Density 235 Jamming Range 14 Cloak Strength 3 Armor Coverage 525 Resistance: KI 25 Resistance: EX 50 Phase Shifting 10 Evasion (%) 64 Targeting Accuracy 6 Melee Accuracy 5 Recoil Reduction 2 Offensive Hacking 22 Item Schematics ----------------- Combat Drone Bay | -7/Data Miner | Free Lgt. Regenerative Plating | -7/Data Miner | Free Multireflex Exoskeleton | -7/Data Miner | Free Exp. Targeting Computer | -7/Data Miner | Free Prc. Rocket Launcher | -7/Data Miner | Free Antigrav System | -7/Data Miner | Free Adv. Trap Extractor | -7/Data Miner | Free Lrn. Proton Cannon | -7/Data Miner | Free IFF Parser | -7/Data Miner | Free Hvy. Phase Cannon | -7/Data Miner | Free Adv. Hacking Suite | -7/Data Miner | Free Railgun | -7/Data Miner | Free Adv. Power Amplifier | -7/Data Miner | Free Robot Schematics ------------------ B-48 Gladiator | -7/Data Miner | Free I-36 Angel | -7/Data Miner | Free E-15 Imp | -7/Data Miner | Free O-24 Administrator | -7/Data Miner | Free R-10 Processor | -7/Data Miner | Free P-70 Sage | -7/Data Miner | Free G-50 Soldier | -7/Data Miner | Free Fabricated ------------ X-67 Chaingunner | x2 | -5/Factory | Preloaded Antigrav System | x2 | -4/Factory Repaired ---------- Assault Rifle | 6% | -8/Materials Studied --------- Airjet | -8/Materials | Hacked Cesium-ion Thruster | -8/Materials | Hacked Grenade Launcher | -8/Materials | Hacked Greatsword | -7/Factory | Hacked Wheel | -7/Factory | Hacked Titanium Leg | -7/Factory | Hacked Alien Tech Used ----------------- None Achievements -------------- None Challenges ------------ None Game ------ Seed VoltaicHeatMatterbank Manual? 0 Play Time 03:11:13 Cumulative 159.9 hours Start 2026.02.15 @ 04:40:56 End 2026.03.08 @ 22:59:34 Sessions 14 Manual Loads 0 Difficulty Rogue Special Mode None Game No. 169 Rogue 169 Adventurer 0 Explorer 0 Win Type - Total 0 Types 0/0/0/0/0/0/0/0/0/0 Lore% 55 Gallery% 45 Achievement% 32 Wizard Run 0 Options --------- Layout 0 ASCII 0 Keyboard 0 Movement Arrows Keybinds 0 Fullscreen 1 Font 20/SmallcapsGlow Map View 66x50 Zoom Use 16% Tactical HUD 1 Map Filters NONE Filters NONE Steam 1 RUN: e797dcb3-0baa-4d5e-b027-79318d2afff9